Workbook

Sheet ◆操作シート
A2: 地域分析ツール（市区町村用）［操作シート］
B5: ※ 以下のＳＴＥＰ１～ＳＴＥＰ３のボタンを順番に押すと、要介護認定データの集計結果をシートに出力します。
B6: ※ 使用前に、認定ソフトから出力した要介護認定データ（csvファイル）をご準備ください。
C9: 読み込んだデータの対象期間における
C10: 直近時点の要支援・要介護認定者数
G11: 人
B15: ［ＳＴＥＰ１］
B21: ［ＳＴＥＰ２］
B27: ［ＳＴＥＰ３］

Sheet 設定 (hidden)
A1: 設問番号 | B1: 選択肢数1 | C1: 選択肢数2 | D1: 入力開始行 | E1: 集計対象列1 | F1: 集計対象列2 | G1: 高さを変更する行1 | H1: 高さを変更する行2
A2: 1 | B2: 2 | D2: 5 | E2: 210 | G2: 9 | H2: 10
A3: 2 | B3: 9 | D3: 13 | E3: 211 | G3: 24 | H3: 25
A4: 3 | B4: 7 | D4: 28 | E4: 212 | G4: 37 | H4: 38
A5: 4 | B5: 8 | D5: 41 | E5: 213 | G5: 51 | H5: 52
A6: 5 | B6: 10 | D6: 55 | E6: 214 | G6: 67 | H6: 68
A7: 6 | B7: 10 | D7: 71 | E7: 215 | G7: 83 | H7: 84
A8: 7 | B8: 10 | D8: 87 | E8: 216 | G8: 99 | H8: 100
A9: 8 | B9: 10 | D9: 103 | E9: 217 | G9: 115 | H9: 116
A10: 9 | B10: 10 | D10: 119 | E10: 218 | G10: 131 | H10: 132
A11: 10 | B11: 14 | D11: 135 | E11: 219 | G11: 151 | H11: 152
A12: 11 | B12: 4 | D12: 155 | E12: 220 | G12: 161 | H12: 162
A13: 12 | B13: 2 | D13: 165 | E13: 221 | G13: 169 | H13: 170
A14: 13 | B14: 7 | D14: 173 | E14: 222 | G14: 182 | H14: 183
A15: 14 | B15: 6 | D15: 186 | E15: 223 | G15: 194 | H15: 195
A16: 15 | B16: 6 | D16: 198 | E16: 224 | G16: 206 | H16: 207
A17: 16 | B17: 2 | D17: 210 | E17: 225 | G17: 214 | H17: 215
A18: 17 | B18: 2 | D18: 218 | E18: 226 | G18: 222 | H18: 223
A19: 18 | B19: 2 | D19: 226 | E19: 227 | G19: 230 | H19: 231
A20: 19 | B20: 2 | D20: 234 | E20: 228 | G20: 238 | H20: 239
A21: 20 | B21: 2 | D21: 242 | E21: 229 | G21: 246 | H21: 247
A22: 21 | B22: 2 | D22: 250 | E22: 230 | G22: 254 | H22: 255
A23: 22 | B23: 2 | D23: 258 | E23: 231 | G23: 262 | H23: 263
A24: 23 | B24: 2 | D24: 266 | E24: 232 | G24: 270 | H24: 271
A25: 24 | B25: 2 | D25: 274 | E25: 233 | G25: 278 | H25: 279
A26: 25 | B26: 2 | D26: 282 | E26: 234 | G26: 286 | H26: 287
A27: 26 | B27: 2 | D27: 290 | E27: 235 | G27: 294 | H27: 295
A28: 27 | B28: 2 | D28: 298 | E28: 236 | G28: 302 | H28: 303
A29: 28 | B29: 2 | D29: 306 | E29: 237 | G29: 310 | H29: 311
A30: 29 | B30: 9 | C30: 14 | D30: 4 | E30: 238 | F30: 219
A31: 30 | B31: 9 | C31: 14 | D31: 18 | E31: 211 | F31: 219
A32: 31 | B32: 9 | C32: 7 | D32: 32 | E32: 238 | F32: 220
A33: 32 | B33: 9 | C33: 2 | D33: 46 | E33: 238 | F33: 221
A34: 33 | B34: 9 | C34: 2 | D34: 60 | E34: 238 | F34: 252
A35: 34 | B35: 3 | C35: 14 | D35: 74 | E35: 239 | F35: 219
A36: 35 | B36: 3 | C36: 14 | D36: 82 | E36: 240 | F36: 219
A37: 36 | B37: 3 | C37: 14 | D37: 90 | E37: 241 | F37: 219
A38: 37 | B38: 3 | C38: 14 | D38: 98 | E38: 242 | F38: 219
A39: 38 | B39: 3 | C39: 14 | D39: 106 | E39: 243 | F39: 219
A40: 39 | B40: 3 | C40: 14 | D40: 114 | E40: 244 | F40: 219
A41: 40 | B41: 3 | C41: 14 | D41: 122 | E41: 245 | F41: 219
A42: 41 | B42: 3 | C42: 14 | D42: 130 | E42: 246 | F42: 219
A43: 42 | B43: 3 | C43: 14 | D43: 138 | E43: 247 | F43: 219
A44: 43 | B44: 3 | C44: 14 | D44: 146 | E44: 248 | F44: 219
A45: 44 | B45: 3 | C45: 14 | D45: 154 | E45: 249 | F45: 219
A46: 45 | B46: 3 | C46: 14 | D46: 162 | E46: 250 | F46: 219
A47: 46 | B47: 3 | C47: 14 | D47: 170 | E47: 251 | F47: 219
A48: 47 | B48: 7 | C48: 8 | D48: 178 | E48: 212 | F48: 213
A49: 48 | B49: 9 | C49: 8 | D49: 189 | E49: 211 | F49: 213
A50: 49 | B50: 9 | C50: 7 | D50: 202 | E50: 211 | F50: 212
A51: 50 | B51: 3 | C51: 7 | D51: 215 | E51: 256 | F51: 222
A52: 51 | B52: 1 | C52: 7 | D52: 218 | E52: 257 | F52: 222
A53: 52 | B53: 3 | C53: 7 | D53: 223 | E53: 256 | F53: 258
A54: 53 | B54: 1 | C54: 7 | D54: 226 | E54: 257 | F54: 258
A55: 54 | B55: 3 | C55: 7 | D55: 231 | E55: 256 | F55: 259
A56: 55 | B56: 1 | C56: 7 | D56: 234 | E56: 257 | F56: 259
A57: 56 | B57: 3 | C57: 6 | D57: 239 | E57: 256 | F57: 223
A58: 57 | B58: 1 | C58: 6 | D58: 242 | E58: 257 | F58: 223
A59: 58 | B59: 3 | C59: 3 | D59: 247 | E59: 260 | F59: 266
A60: 59 | B60: 3 | C60: 3 | D60: 255 | E60: 260 | F60: 266
A61: 60 | B61: 3 | C61: 3 | D61: 262 | E61: 266 | F61: 260
A62: 61 | B62: 3 | C62: 3 | D62: 270 | E62: 266 | F62: 260
A63: 62 | B63: 9 | C63: 7 | D63: 277 | E63: 261 | F63: 220
A64: 63 | B64: 9 | C64: 7 | D64: 291 | E64: 262 | F64: 220
A65: 64 | B65: 1 | C65: 7 | D65: 305 | E65: 265 | F65: 212
A66: 65 | B66: 1 | C66: 7 | D66: 307 | E66: 264 | F66: 212
A67: 66 | B67: 3 | D67: 314 | E67: 266 | G67: 319 | H67: 320

Sheet 要介護認定データ
A1: 1 | B1: 2 | C1: 3 | D1: 4 | E1: 5 | F1: 6 | G1: 7 | H1: 8 | I1: 9 | J1: 10 | K1: 11 | L1: 12 | M1: 13 | N1: 14 | O1: 15 | P1: 16 | Q1: 17 | R1: 18 | S1: 19 | T1: 20 | U1: 21 | V1: 22 | W1: 23 | X1: 24 | Y1: 25 | Z1: 26 | AA1: 27 | AB1: 28 | AC1: 29 | AD1: 30 | AE1: 31 | AF1: 32 | AG1: 33 | AH1: 34 | AI1: 35 | AJ1: 36 | AK1: 37 | AL1: 38 | AM1: 39 | AN1: 40 | AO1: 41 | AP1: 42 | AQ1: 43 | AR1: 44 | AS1: 45 | AT1: 46 | AU1: 47 | AV1: 48 | AW1: 49 | AX1: 50 | AY1: 51 | AZ1: 52 | BA1: 53 | BB1: 54 | BC1: 55 | BD1: 56 | BE1: 57 | BF1: 58 | BG1: 59 | BH1: 60 | BI1: 61 | BJ1: 62 | BK1: 63 | BL1: 64 | BM1: 65 | BN1: 66 | BO1: 67 | BP1: 68 | BQ1: 69 | BR1: 70 | BS1: 71 | BT1: 72 | BU1: 73 | BV1: 74 | BW1: 75 | BX1: 76 | BY1: 77 | BZ1: 78 | CA1: 79 | CB1: 80 | CC1: 81 | CD1: 82 | CE1: 83 | CF1: 84 | CG1: 85 | CH1: 86 | CI1: 87 | CJ1: 88 | CK1: 89 | CL1: 90 | CM1: 91 | CN1: 92 | CO1: 93 | CP1: 94 | CQ1: 95 | CR1: 96 | CS1: 97 | CT1: 98 | CU1: 99 | CV1: 100 | CW1: 101 | CX1: 102 | CY1: 103 | CZ1: 104 | DA1: 105 | DB1: 106 | DC1: 107 | DD1: 108 | DE1: 109 | DF1: 110 | DG1: 111 | DH1: 112 | DI1: 113 | DJ1: 114 | DK1: 115 | DL1: 116 | DM1: 117 | DN1: 118 | DO1: 119 | DP1: 120 | DQ1: 121 | DR1: 122 | DS1: 123 | DT1: 124 | DU1: 125 | DV1: 126 | DW1: 127 | DX1: 128 | DY1: 129 | DZ1: 130 | EA1: 131 | EB1: 132 | EC1: 133 | ED1: 134 | EE1: 135 | EF1: 136 | EG1: 137 | EH1: 138 | EI1: 139 | EJ1: 140 | EK1: 141 | EL1: 142 | EM1: 143 | EN1: 144 | EO1: 145 | EP1: 146 | EQ1: 147 | ER1: 148 | ES1: 149 | ET1: 150 | EU1: 151 | EV1: 152 | EW1: 153 | EX1: 154 | EY1: 155 | EZ1: 156 | FA1: 157 | FB1: 158 | FC1: 159 | FD1: 160 | FE1: 161 | FF1: 162 | FG1: 163 | FH1: 164 | FI1: 165 | FJ1: 166 | FK1: 167 | FL1: 168 | FM1: 169 | FN1: 170 | FO1: 171 | FP1: 172 | FQ1: 173 | FR1: 174 | FS1: 175 | FT1: 176 | FU1: 177 | FV1: 178 | FW1: 179 | FX1: 180 | FY1: 181 | FZ1: 182 | GA1: 183 | GB1: 184 | GC1: 185 | GD1: 186 | GE1: 187 | GF1: 188 | GG1: 189 | GH1: 190 | GI1: 191 | GJ1: 192 | GK1: 193 | GL1: 194 | GM1: 195 | GN1: 196 | GO1: 197 | GP1: 198 | GQ1: 199 | GR1: 200 | GS1: 201 | GT1: 202 | GU1: 203 | GV1: 204 | GW1: 205 | GX1: 206 | GY1: 207 | GZ1: 208 | HA1: 209 | HB1: 210 | HC1: 211 | HD1: 212 | HE1: 213 | HF1: 214 | HG1: 215 | HH1: 216 | HI1: 217 | HJ1: 218 | HK1: 219 | HL1: 220 | HM1: 221 | HN1: 222 | HO1: 223 | HP1: 224 | HQ1: 225 | HR1: 226 | HS1: 227 | HT1: 228 | HU1: 229 | HV1: 230 | HW1: 231 | HX1: 232 | HY1: 233 | HZ1: 234 | IA1: 235 | IB1: 236 | IC1: 237 | ID1: 238 | IE1: 239 | IF1: 240 | IG1: 241 | IH1: 242 | II1: 243 | IJ1: 244 | IK1: 245 | IL1: 246 | IM1: 247 | IN1: 248 | IO1: 249 | IP1: 250 | IQ1: 251 | IR1: 252 | IS1: 253 | IT1: 254 | IU1: 255 | IV1: 256 | IW1: 257 | IX1: 258 | IY1: 259 | IZ1: 260 | JA1: 261 | JB1: 262 | JC1: 263 | JD1: 264 | JE1: 265 | JF1: 266
B2: 被保険者コード | I2: 年齢 | K2: 性別コード | BN2: 二次判定結果 | BV2: 現在の状況 | BW2: 訪問介護(ホームヘルプサービス) | BX2: 訪問入浴介護 | BY2: 訪問看護 | BZ2: 訪問リハビリテーション | CA2: 居宅療養管理指導 | CB2: 通所介護(デイサービス) | CC2: 通所リハビリテーション | CD2: 短期入所生活介護(ショートステイ) | CE2: 短期入所療養介護 | CF2: 特定施設入居者生活介護 | CG2: 福祉用具貸与 | CH2: 特定福祉用具販売 | CI2: 住宅改修(介護給付) | CJ2: 夜間対応型訪問介護 | CK2: 認知症対応型通所介護 | CL2: 小規模多機能型居宅介護 | CM2: 認知症対応型共同生活介護(グループホーム) | CN2: 地域密着型特定施設入居者生活介護 | CO2: 地域密着型介護老人福祉施設入所者生活介護 | CP2: 介護予防訪問介護(ホームヘルプサービス) | CQ2: 介護予防訪問入浴介護 | CR2: 介護予防訪問看護 | CS2: 介護予防訪問リハビリテーション | CT2: 介護予防居宅療養管理指導 | CU2: 介護予防通所介護(デイサービス) | CV2: 介護予防通所リハビリテーション | CW2: 介護予防短期入所生活介護(ショートステイ) | CX2: 介護予防短期入所療養介護 | CY2: 介護予防特定施設入居者生活介護 | CZ2: 介護予防福祉用具貸与 | DA2: 特定介護予防福祉用具販売 | DB2: 住宅改修(予防給付) | DC2: 介護予防認知症対応型通所介護 | DD2: 介護予防小規模多機能型居宅介護 | DE2: 介護予防認知症対応型共同生活介護(グループホーム) | GB2: 障害高齢者自立度 | GC2: 認知症高齢者自立度 | GY2: 定期巡回・随時対応型訪問介護看護 | GZ2: 看護小規模多機能型居宅介護 | HB2: 性別 | HC2: 年齢 | HD2: 二次判定結果 | HE2: 認知症高齢者自立度 | HK2: 居所 | HL2: サービス利用の組み合わせ | HM2: 訪問看護の利用 | HN2: サービス利用回数（訪問系） | HO2: サービス利用回数（通所系） | HP2: サービス利用回数（短期系） | ID2: 認知症自立度×要介護度 | IR2: サービス利用回数（短期系） | IS2: 有効期間補正係数 | IT2: 地域番号 | IV2: 居所（居宅／有料／サ高住） | IW2: 居所（有料＋サ高住） | IX2: サービス利用回数（訪問介護） | IY2: サービス利用回数（訪問看護） | IZ2: 二次判定結果２ | JA2: 世帯類型×認知症自立度 | JB2: 世帯類型×二次判定結果 | JE2: 集計対象

Sheet 単純集計ひな形 (hidden)
B4: 性別
C5: 全体
B6: 男性 | C6: 0.5
B7: 女性 | C7: 0.5
B8: 合計 | C8: =SUM(C6:C7) -> 1
B12: 年齢
C13: 全体
B14: 65歳未満 | C14: 0.1111111111
B15: 65～69歳 | C15: 0.1111111111
B16: 70～74歳 | C16: 0.1111111111
B17: 75～79歳 | C17: 0.1111111111
B18: 80～84歳 | C18: 0.1111111111
B19: 85～89歳 | C19: 0.1111111111
B20: 90～94歳 | C20: 0.1111111111
B21: 95～99歳 | C21: 0.1111111111
B22: 100歳以上 | C22: 0.1111111111
B23: 合計 | C23: =SUM(C14:C22) -> 1
B27: 要介護度
C28: 全体
B29: 要支援1 | C29: =1/7 -> 0.1428571429
B30: 要支援2 | C30: =1/7 -> 0.1428571429
B31: 要介護1 | C31: 0.1428571429
B32: 要介護2 | C32: 0.1428571429
B33: 要介護3 | C33: 0.1428571429
B34: 要介護4 | C34: 0.1428571429
B35: 要介護5 | C35: 0.1428571429
B36: 合計 | C36: =SUM(C29:C35) -> 1
B40: 認知症高齢者の日常生活自立度
C41: 全体
B42: 自立 | C42: 0.125
B43: Ⅰ | C43: 0.125
B44: Ⅱa | C44: 0.125
B45: Ⅱb | C45: 0.125
B46: Ⅲa | C46: 0.125
B47: Ⅲb | C47: 0.125
B48: Ⅳ | C48: 0.125
B49: M | C49: 0.125
B50: 合計 | C50: =SUM(C42:C49) -> 1
B54: 中間評価項目得点（第1群）
C55: 全体
B56: 10点未満 | C56: 0.1
B57: 10点以上 | C57: 0.1
B58: 20点以上 | C58: 0.1
B59: 30点以上 | C59: 0.1
B60: 40点以上 | C60: 0.1
B61: 50点以上 | C61: 0.1
B62: 60点以上 | C62: 0.1
B63: 70点以上 | C63: 0.1
B64: 80点以上 | C64: 0.1
B65: 90点以上 | C65: 0.1
B66: 合計 | C66: =SUM(C56:C65) -> 1
B70: 中間評価項目得点（第2群）
C71: 全体
B72: 10点未満 | C72: 0.1
B73: 10点以上 | C73: 0.1
B74: 20点以上 | C74: 0.1
B75: 30点以上 | C75: 0.1
B76: 40点以上 | C76: 0.1
B77: 50点以上 | C77: 0.1
B78: 60点以上 | C78: 0.1
B79: 70点以上 | C79: 0.1
B80: 80点以上 | C80: 0.1
B81: 90点以上 | C81: 0.1
B82: 合計 | C82: =SUM(C72:C81) -> 1
B86: 中間評価項目得点（第3群）
C87: 全体
B88: 10点未満 | C88: 0.1
B89: 10点以上 | C89: 0.1
B90: 20点以上 | C90: 0.1
B91: 30点以上 | C91: 0.1
B92: 40点以上 | C92: 0.1
B93: 50点以上 | C93: 0.1
B94: 60点以上 | C94: 0.1
B95: 70点以上 | C95: 0.1
B96: 80点以上 | C96: 0.1
B97: 90点以上 | C97: 0.1
B98: 合計 | C98: =SUM(C88:C97) -> 1
B102: 中間評価項目得点（第4群）
C103: 全体
B104: 10点未満 | C104: 0.1
B105: 10点以上 | C105: 0.1
B106: 20点以上 | C106: 0.1
B107: 30点以上 | C107: 0.1
B108: 40点以上 | C108: 0.1
B109: 50点以上 | C109: 0.1
B110: 60点以上 | C110: 0.1
B111: 70点以上 | C111: 0.1
B112: 80点以上 | C112: 0.1
B113: 90点以上 | C113: 0.1
B114: 合計 | C114: =SUM(C104:C113) -> 1
B118: 中間評価項目得点（第5群）
C119: 全体
B120: 10点未満 | C120: 0.1
B121: 10点以上 | C121: 0.1
B122: 20点以上 | C122: 0.1
B123: 30点以上 | C123: 0.1
B124: 40点以上 | C124: 0.1
B125: 50点以上 | C125: 0.1
B126: 60点以上 | C126: 0.1
B127: 70点以上 | C127: 0.1
B128: 80点以上 | C128: 0.1
B129: 90点以上 | C129: 0.1
B130: 合計 | C130: =SUM(C120:C129) -> 1
B134: 居所
C135: 全体
B136: 居宅 | C136: =1/14 -> 0.07142857143
B137: 特養 | C137: =1/14 -> 0.07142857143
B138: 老健 | C138: 0.07142857143
B139: 介護療養 | C139: 0.07142857143
B140: GH | C140: 0.07142857143
B141: 特定施設 | C141: 0.07142857143
B142: 医療療養 | C142: 0.07142857143
B143: 医療機関 | C143: 0.07142857143
B144: その他施設 | C144: 0.07142857143
B145: 介護医療院 | C145: 0.07142857143
B146: 養護 | C146: 0.07142857143
B147: 軽費 | C147: 0.07142857143
B148: 有料 | C148: 0.07142857143
B149: サ高住 | C149: 0.07142857143
B150: 合計 | C150: =SUM(C136:C149) -> 1
B154: サービス利用の組み合わせ（居宅・有料・サ高住）
C155: 全体
B156: 訪問系のみ | C156: 0.25
B157: 訪問系を含む組み合わせ | C157: 0.25
B158: 通所系・短期系のみ | C158: 0.25
B159: それ以外 | C159: 0.25
B160: 合計 | C160: =SUM(C156:C159) -> 1
B164: 訪問看護の利用（看多機含む、居宅・有料・サ高住）
C165: 全体
B166: なし | C166: 0.5
B167: あり | C167: 0.5
B168: 合計 | C168: =SUM(C166:C167) -> 1
B172: 訪問系サービス利用の回数（定巡除く、居宅・有料・サ高住）
C173: 全体
B174: 0回 | C174: 0.1428571429
B175: 1～4回 | C175: 0.1428571429
B176: 5～14回 | C176: 0.1428571429
B177: 15～24回 | C177: 0.1428571429
B178: 25～31回 | C178: 0.1428571429
B179: 32～49回 | C179: 0.1428571429
B180: 50回以上 | C180: 0.1428571429
B181: 合計 | C181: =SUM(C174:C180) -> 1
B185: 通所系サービス利用の回数（居宅・有料・サ高住）
C186: 全体
B187: 0回 | C187: 0.1666666667
B188: 1～4回 | C188: 0.1666666667
B189: 5～9回 | C189: 0.1666666667
B190: 10～14回 | C190: 0.1666666667
B191: 15～24回 | C191: 0.1666666667
B192: 25回以上 | C192: 0.1666666667
B193: 合計 | C193: =SUM(C187:C192) -> 1
B197: 短期系サービス利用の回数（居宅・有料・サ高住）
C198: 全体
B199: 0回 | C199: 0.1666666667
B200: 1～4回 | C200: 0.1666666667
B201: 5～9回 | C201: 0.1666666667
B202: 10～14回 | C202: 0.1666666667
B203: 15～24回 | C203: 0.1666666667
B204: 25回以上 | C204: 0.1666666667
B205: 合計 | C205: =SUM(C199:C204) -> 1
B209: 特別な医療（1つでも該当）
C210: 全体
B211: なし | C211: 0.5
B212: あり | C212: 0.5
B213: 合計 | C213: =SUM(C211:C212) -> 1
B217: 点滴の管理
C218: 全体
B219: なし | C219: 0.5
B220: あり | C220: 0.5
B221: 合計 | C221: =SUM(C219:C220) -> 1
B225: 中心静脈栄養
C226: 全体
B227: なし | C227: 0.5
B228: あり | C228: 0.5
B229: 合計 | C229: =SUM(C227:C228) -> 1
B233: 透析
C234: 全体
B235: なし | C235: 0.5
B236: あり | C236: 0.5
B237: 合計 | C237: =SUM(C235:C236) -> 1
B241: ストーマの処置
C242: 全体
B243: なし | C243: 0.5
B244: あり | C244: 0.5
B245: 合計 | C245: =SUM(C243:C244) -> 1
B249: 酸素療法
C250: 全体
B251: なし | C251: 0.5
B252: あり | C252: 0.5
B253: 合計 | C253: =SUM(C251:C252) -> 1
B257: レスピレーター
C258: 全体
B259: なし | C259: 0.5
B260: あり | C260: 0.5
B261: 合計 | C261: =SUM(C259:C260) -> 1
B265: 気管切開の処置
C266: 全体
B267: なし | C267: 0.5
B268: あり | C268: 0.5
B269: 合計 | C269: =SUM(C267:C268) -> 1
... 31 more rows

Sheet クロス集計ひな形 (hidden)
B3: 全体
B4: 状態像別の居所 | D4: 居宅 | E4: 特養 | F4: 老健 | G4: 介護療養 | H4: GH | I4: 特定施設 | J4: 医療療養 | K4: 医療機関 | L4: その他施設 | M4: 介護医療院 | N4: 養護 | O4: 軽費 | P4: 有料 | Q4: サ高住 | R4: 合計
B5: 認知症自立度Ⅰ以下 | C5: 要支援1～2 | D5: =1/126 -> 0.007936507937 | E5: =1/126 -> 0.007936507937 | F5: 0.007936507937 | G5: 0.007936507937 | H5: 0.007936507937 | I5: 0.007936507937 | J5: 0.007936507937 | K5: 0.007936507937 | L5: 0.007936507937 | M5: 0.007936507937 | N5: 0.007936507937 | O5: 0.007936507937 | P5: 0.007936507937 | Q5: 0.007936507937 | R5: =SUM(D5:Q5) -> 0.1111111111
C6: 要介護1～2 | D6: =1/126 -> 0.007936507937 | E6: 0.007936507937 | F6: 0.007936507937 | G6: 0.007936507937 | H6: 0.007936507937 | I6: 0.007936507937 | J6: 0.007936507937 | K6: 0.007936507937 | L6: 0.007936507937 | M6: 0.007936507937 | N6: 0.007936507937 | O6: 0.007936507937 | P6: 0.007936507937 | Q6: 0.007936507937 | R6: =SUM(D6:Q6) -> 0.1111111111
C7: 要介護3～5 | D7: 0.007936507937 | E7: 0.007936507937 | F7: 0.007936507937 | G7: 0.007936507937 | H7: 0.007936507937 | I7: 0.007936507937 | J7: 0.007936507937 | K7: 0.007936507937 | L7: 0.007936507937 | M7: 0.007936507937 | N7: 0.007936507937 | O7: 0.007936507937 | P7: 0.007936507937 | Q7: 0.007936507937 | R7: 0.1111111111
B8: 認知症自立度Ⅱ | C8: 要支援1～2 | D8: 0.007936507937 | E8: 0.007936507937 | F8: 0.007936507937 | G8: 0.007936507937 | H8: 0.007936507937 | I8: 0.007936507937 | J8: 0.007936507937 | K8: 0.007936507937 | L8: 0.007936507937 | M8: 0.007936507937 | N8: 0.007936507937 | O8: 0.007936507937 | P8: 0.007936507937 | Q8: 0.007936507937 | R8: 0.1111111111
C9: 要介護1～2 | D9: 0.007936507937 | E9: 0.007936507937 | F9: 0.007936507937 | G9: 0.007936507937 | H9: 0.007936507937 | I9: 0.007936507937 | J9: 0.007936507937 | K9: 0.007936507937 | L9: 0.007936507937 | M9: 0.007936507937 | N9: 0.007936507937 | O9: 0.007936507937 | P9: 0.007936507937 | Q9: 0.007936507937 | R9: 0.1111111111
C10: 要介護3～5 | D10: 0.007936507937 | E10: 0.007936507937 | F10: 0.007936507937 | G10: 0.007936507937 | H10: 0.007936507937 | I10: 0.007936507937 | J10: 0.007936507937 | K10: 0.007936507937 | L10: 0.007936507937 | M10: 0.007936507937 | N10: 0.007936507937 | O10: 0.007936507937 | P10: 0.007936507937 | Q10: 0.007936507937 | R10: 0.1111111111
B11: 認知症自立度Ⅲ以上 | C11: 要支援1～2 | D11: 0.007936507937 | E11: 0.007936507937 | F11: 0.007936507937 | G11: 0.007936507937 | H11: 0.007936507937 | I11: 0.007936507937 | J11: 0.007936507937 | K11: 0.007936507937 | L11: 0.007936507937 | M11: 0.007936507937 | N11: 0.007936507937 | O11: 0.007936507937 | P11: 0.007936507937 | Q11: 0.007936507937 | R11: 0.1111111111
C12: 要介護1～2 | D12: 0.007936507937 | E12: 0.007936507937 | F12: 0.007936507937 | G12: 0.007936507937 | H12: 0.007936507937 | I12: 0.007936507937 | J12: 0.007936507937 | K12: 0.007936507937 | L12: 0.007936507937 | M12: 0.007936507937 | N12: 0.007936507937 | O12: 0.007936507937 | P12: 0.007936507937 | Q12: 0.007936507937 | R12: 0.1111111111
C13: 要介護3～5 | D13: 0.007936507937 | E13: 0.007936507937 | F13: 0.007936507937 | G13: 0.007936507937 | H13: 0.007936507937 | I13: 0.007936507937 | J13: 0.007936507937 | K13: 0.007936507937 | L13: 0.007936507937 | M13: 0.007936507937 | N13: 0.007936507937 | O13: 0.007936507937 | P13: 0.007936507937 | Q13: 0.007936507937 | R13: 0.1111111111
B14: 合計 | D14: =SUM(D5:D13) -> 0.07142857143 | E14: =SUM(E5:E13) -> 0.07142857143 | F14: 0.07142857143 | G14: 0.07142857143 | H14: 0.07142857143 | I14: 0.07142857143 | J14: 0.07142857143 | K14: 0.07142857143 | L14: 0.07142857143 | M14: 0.07142857143 | N14: 0.07142857143 | O14: 0.07142857143 | P14: 0.07142857143 | Q14: 0.07142857143 | R14: =SUM(D14:Q14) -> 1
B17: 全体
B18: 年齢別の居所 | D18: 居宅 | E18: 特養 | F18: 老健 | G18: 介護療養 | H18: GH | I18: 特定施設 | J18: 医療療養 | K18: 医療機関 | L18: その他施設 | M18: 介護医療院 | N18: 養護 | O18: 軽費 | P18: 有料 | Q18: サ高住 | R18: 合計
B19: 65歳未満 | D19: =1/126 -> 0.007936507937 | E19: =1/126 -> 0.007936507937 | F19: 0.007936507937 | G19: 0.007936507937 | H19: 0.007936507937 | I19: 0.007936507937 | J19: 0.007936507937 | K19: 0.007936507937 | L19: 0.007936507937 | M19: 0.007936507937 | N19: 0.007936507937 | O19: 0.007936507937 | P19: 0.007936507937 | Q19: 0.007936507937 | R19: =SUM(D19:Q19) -> 0.1111111111
B20: 65～69歳 | D20: =1/126 -> 0.007936507937 | E20: 0.007936507937 | F20: 0.007936507937 | G20: 0.007936507937 | H20: 0.007936507937 | I20: 0.007936507937 | J20: 0.007936507937 | K20: 0.007936507937 | L20: 0.007936507937 | M20: 0.007936507937 | N20: 0.007936507937 | O20: 0.007936507937 | P20: 0.007936507937 | Q20: 0.007936507937 | R20: =SUM(D20:Q20) -> 0.1111111111
B21: 70～74歳 | D21: 0.007936507937 | E21: 0.007936507937 | F21: 0.007936507937 | G21: 0.007936507937 | H21: 0.007936507937 | I21: 0.007936507937 | J21: 0.007936507937 | K21: 0.007936507937 | L21: 0.007936507937 | M21: 0.007936507937 | N21: 0.007936507937 | O21: 0.007936507937 | P21: 0.007936507937 | Q21: 0.007936507937 | R21: 0.1111111111
B22: 75～79歳 | D22: 0.007936507937 | E22: 0.007936507937 | F22: 0.007936507937 | G22: 0.007936507937 | H22: 0.007936507937 | I22: 0.007936507937 | J22: 0.007936507937 | K22: 0.007936507937 | L22: 0.007936507937 | M22: 0.007936507937 | N22: 0.007936507937 | O22: 0.007936507937 | P22: 0.007936507937 | Q22: 0.007936507937 | R22: 0.1111111111
B23: 80～84歳 | D23: 0.007936507937 | E23: 0.007936507937 | F23: 0.007936507937 | G23: 0.007936507937 | H23: 0.007936507937 | I23: 0.007936507937 | J23: 0.007936507937 | K23: 0.007936507937 | L23: 0.007936507937 | M23: 0.007936507937 | N23: 0.007936507937 | O23: 0.007936507937 | P23: 0.007936507937 | Q23: 0.007936507937 | R23: 0.1111111111
B24: 85～89歳 | D24: 0.007936507937 | E24: 0.007936507937 | F24: 0.007936507937 | G24: 0.007936507937 | H24: 0.007936507937 | I24: 0.007936507937 | J24: 0.007936507937 | K24: 0.007936507937 | L24: 0.007936507937 | M24: 0.007936507937 | N24: 0.007936507937 | O24: 0.007936507937 | P24: 0.007936507937 | Q24: 0.007936507937 | R24: 0.1111111111
B25: 90～94歳 | D25: 0.007936507937 | E25: 0.007936507937 | F25: 0.007936507937 | G25: 0.007936507937 | H25: 0.007936507937 | I25: 0.007936507937 | J25: 0.007936507937 | K25: 0.007936507937 | L25: 0.007936507937 | M25: 0.007936507937 | N25: 0.007936507937 | O25: 0.007936507937 | P25: 0.007936507937 | Q25: 0.007936507937 | R25: 0.1111111111
B26: 95～99歳 | D26: 0.007936507937 | E26: 0.007936507937 | F26: 0.007936507937 | G26: 0.007936507937 | H26: 0.007936507937 | I26: 0.007936507937 | J26: 0.007936507937 | K26: 0.007936507937 | L26: 0.007936507937 | M26: 0.007936507937 | N26: 0.007936507937 | O26: 0.007936507937 | P26: 0.007936507937 | Q26: 0.007936507937 | R26: 0.1111111111
B27: 100歳以上 | D27: 0.007936507937 | E27: 0.007936507937 | F27: 0.007936507937 | G27: 0.007936507937 | H27: 0.007936507937 | I27: 0.007936507937 | J27: 0.007936507937 | K27: 0.007936507937 | L27: 0.007936507937 | M27: 0.007936507937 | N27: 0.007936507937 | O27: 0.007936507937 | P27: 0.007936507937 | Q27: 0.007936507937 | R27: 0.1111111111
B28: 合計 | D28: =SUM(D19:D27) -> 0.07142857143 | E28: =SUM(E19:E27) -> 0.07142857143 | F28: 0.07142857143 | G28: 0.07142857143 | H28: 0.07142857143 | I28: 0.07142857143 | J28: 0.07142857143 | K28: 0.07142857143 | L28: 0.07142857143 | M28: 0.07142857143 | N28: 0.07142857143 | O28: 0.07142857143 | P28: 0.07142857143 | Q28: 0.07142857143 | R28: =SUM(D28:Q28) -> 1
B31: 全体
B32: 状態像別のサービス利用（居宅・有料・サ高住） | D32: 訪問系のみ | E32: 訪問系を含む組み合わせ | F32: 通所系・短期系のみ | G32: それ以外 | H32: （参考）定巡を含む | I32: （参考）小多機を含む | J32: （参考）看多機を含む | K32: 合計
B33: 認知症自立度Ⅰ以下 | C33: 要支援1～2 | D33: =1/36 -> 0.02777777778 | E33: =1/36 -> 0.02777777778 | F33: 0.02777777778 | G33: 0.02777777778 | H33: =1/100 -> 0.01 | I33: =1/100 -> 0.01 | J33: 0.01 | K33: =SUM(D33:G33) -> 0.1111111111
C34: 要介護1～2 | D34: =1/36 -> 0.02777777778 | E34: 0.02777777778 | F34: 0.02777777778 | G34: 0.02777777778 | H34: =1/100 -> 0.01 | I34: 0.01 | J34: 0.01 | K34: =SUM(D34:G34) -> 0.1111111111
C35: 要介護3～5 | D35: 0.02777777778 | E35: 0.02777777778 | F35: 0.02777777778 | G35: 0.02777777778 | H35: 0.01 | I35: 0.01 | J35: 0.01 | K35: 0.1111111111
B36: 認知症自立度Ⅱ | C36: 要支援1～2 | D36: 0.02777777778 | E36: 0.02777777778 | F36: 0.02777777778 | G36: 0.02777777778 | H36: 0.01 | I36: 0.01 | J36: 0.01 | K36: 0.1111111111
C37: 要介護1～2 | D37: 0.02777777778 | E37: 0.02777777778 | F37: 0.02777777778 | G37: 0.02777777778 | H37: 0.01 | I37: 0.01 | J37: 0.01 | K37: 0.1111111111
C38: 要介護3～5 | D38: 0.02777777778 | E38: 0.02777777778 | F38: 0.02777777778 | G38: 0.02777777778 | H38: 0.01 | I38: 0.01 | J38: 0.01 | K38: 0.1111111111
B39: 認知症自立度Ⅲ以上 | C39: 要支援1～2 | D39: 0.02777777778 | E39: 0.02777777778 | F39: 0.02777777778 | G39: 0.02777777778 | H39: 0.01 | I39: 0.01 | J39: 0.01 | K39: 0.1111111111
C40: 要介護1～2 | D40: 0.02777777778 | E40: 0.02777777778 | F40: 0.02777777778 | G40: 0.02777777778 | H40: 0.01 | I40: 0.01 | J40: 0.01 | K40: 0.1111111111
C41: 要介護3～5 | D41: 0.02777777778 | E41: 0.02777777778 | F41: 0.02777777778 | G41: 0.02777777778 | H41: 0.01 | I41: 0.01 | J41: 0.01 | K41: 0.1111111111
B42: 合計 | D42: =SUM(D33:D41) -> 0.25 | E42: 0.25 | F42: 0.25 | G42: 0.25 | H42: 0.09 | I42: 0.09 | J42: 0.09 | K42: =SUM(D33:G41) -> 1
B45: 全体
B46: 状態像別の訪問看護の利用（看多機含む、居宅・有料・サ高住） | D46: なし | E46: あり | F46: 合計
B47: 認知症自立度Ⅰ以下 | C47: 要支援1～2 | D47: =1/18 -> 0.05555555556 | E47: =1/18 -> 0.05555555556 | F47: =SUM(D47:E47) -> 0.1111111111
C48: 要介護1～2 | D48: =1/18 -> 0.05555555556 | E48: 0.05555555556 | F48: =SUM(D48:E48) -> 0.1111111111
C49: 要介護3～5 | D49: 0.05555555556 | E49: 0.05555555556 | F49: 0.1111111111
B50: 認知症自立度Ⅱ | C50: 要支援1～2 | D50: 0.05555555556 | E50: 0.05555555556 | F50: 0.1111111111
C51: 要介護1～2 | D51: 0.05555555556 | E51: 0.05555555556 | F51: 0.1111111111
C52: 要介護3～5 | D52: 0.05555555556 | E52: 0.05555555556 | F52: 0.1111111111
B53: 認知症自立度Ⅲ以上 | C53: 要支援1～2 | D53: 0.05555555556 | E53: 0.05555555556 | F53: 0.1111111111
C54: 要介護1～2 | D54: 0.05555555556 | E54: 0.05555555556 | F54: 0.1111111111
C55: 要介護3～5 | D55: 0.05555555556 | E55: 0.05555555556 | F55: 0.1111111111
B56: 合計 | D56: =SUM(D47:D55) -> 0.5 | E56: =SUM(E47:E55) -> 0.5 | F56: =SUM(D47:E55) -> 1
B59: 全体
B60: 状態像別のショートステイ利用実態（短期入所療養介護含む、居宅・有料・サ高住） | D60: 14日以下 | E60: 15日以上 | F60: 合計
B61: 認知症自立度Ⅰ以下 | C61: 要支援1～2 | D61: =1/18 -> 0.05555555556 | E61: =1/18 -> 0.05555555556 | F61: =SUM(D61:E61) -> 0.1111111111
C62: 要介護1～2 | D62: =1/18 -> 0.05555555556 | E62: 0.05555555556 | F62: 0.1111111111
C63: 要介護3～5 | D63: 0.05555555556 | E63: 0.05555555556 | F63: 0.1111111111
B64: 認知症自立度Ⅱ | C64: 要支援1～2 | D64: 0.05555555556 | E64: 0.05555555556 | F64: 0.1111111111
C65: 要介護1～2 | D65: 0.05555555556 | E65: 0.05555555556 | F65: 0.1111111111
C66: 要介護3～5 | D66: 0.05555555556 | E66: 0.05555555556 | F66: 0.1111111111
B67: 認知症自立度Ⅲ以上 | C67: 要支援1～2 | D67: 0.05555555556 | E67: 0.05555555556 | F67: 0.1111111111
C68: 要介護1～2 | D68: 0.05555555556 | E68: 0.05555555556 | F68: 0.1111111111
C69: 要介護3～5 | D69: 0.05555555556 | E69: 0.05555555556 | F69: 0.1111111111
B70: 合計 | D70: =SUM(D61:D69) -> 0.5 | E70: =SUM(E61:E69) -> 0.5 | F70: =SUM(D61:E69) -> 1
B73: 全体
B74: 特別な医療の種類別の居所（特別な医療が1つでも該当） | D74: 居宅 | E74: 特養 | F74: 老健 | G74: 介護療養 | H74: GH | I74: 特定施設 | J74: 医療療養 | K74: 医療機関 | L74: その他施設 | M74: 介護医療院 | N74: 養護 | O74: 軽費 | P74: 有料 | Q74: サ高住 | R74: 合計
B75: 要支援1～2 | D75: =1/42 -> 0.02380952381 | E75: =1/42 -> 0.02380952381 | F75: 0.02380952381 | G75: 0.02380952381 | H75: 0.02380952381 | I75: 0.02380952381 | J75: 0.02380952381 | K75: 0.02380952381 | L75: 0.02380952381 | M75: 0.02380952381 | N75: 0.02380952381 | O75: 0.02380952381 | P75: 0.02380952381 | Q75: 0.02380952381 | R75: =SUM(D75:Q75) -> 0.3333333333
B76: 要介護1～2 | D76: =1/42 -> 0.02380952381 | E76: 0.02380952381 | F76: 0.02380952381 | G76: 0.02380952381 | H76: 0.02380952381 | I76: 0.02380952381 | J76: 0.02380952381 | K76: 0.02380952381 | L76: 0.02380952381 | M76: 0.02380952381 | N76: 0.02380952381 | O76: 0.02380952381 | P76: 0.02380952381 | Q76: 0.02380952381 | R76: =SUM(D76:Q76) -> 0.3333333333
B77: 要介護3～5 | D77: 0.02380952381 | E77: 0.02380952381 | F77: 0.02380952381 | G77: 0.02380952381 | H77: 0.02380952381 | I77: 0.02380952381 | J77: 0.02380952381 | K77: 0.02380952381 | L77: 0.02380952381 | M77: 0.02380952381 | N77: 0.02380952381 | O77: 0.02380952381 | P77: 0.02380952381 | Q77: 0.02380952381 | R77: 0.3333333333
B78: 合計 | D78: =SUM(D75:D77) -> 0.07142857143 | E78: =SUM(E75:E77) -> 0.07142857143 | F78: 0.07142857143 | G78: 0.07142857143 | H78: 0.07142857143 | I78: 0.07142857143 | J78: 0.07142857143 | K78: 0.07142857143 | L78: 0.07142857143 | M78: 0.07142857143 | N78: 0.07142857143 | O78: 0.07142857143 | P78: 0.07142857143 | Q78: 0.07142857143 | R78: =SUM(D78:Q78) -> 1
B81: 全体
B82: 特別な医療の種類別の居所（点滴の管理） | D82: 居宅 | E82: 特養 | F82: 老健 | G82: 介護療養 | H82: GH | I82: 特定施設 | J82: 医療療養 | K82: 医療機関 | L82: その他施設 | M82: 介護医療院 | N82: 養護 | O82: 軽費 | P82: 有料 | Q82: サ高住 | R82: 合計
B83: 要支援1～2 | D83: =1/42 -> 0.02380952381 | E83: =1/42 -> 0.02380952381 | F83: 0.02380952381 | G83: 0.02380952381 | H83: 0.02380952381 | I83: 0.02380952381 | J83: 0.02380952381 | K83: 0.02380952381 | L83: 0.02380952381 | M83: 0.02380952381 | N83: 0.02380952381 | O83: 0.02380952381 | P83: 0.02380952381 | Q83: 0.02380952381 | R83: =SUM(D83:Q83) -> 0.3333333333
B84: 要介護1～2 | D84: =1/42 -> 0.02380952381 | E84: 0.02380952381 | F84: 0.02380952381 | G84: 0.02380952381 | H84: 0.02380952381 | I84: 0.02380952381 | J84: 0.02380952381 | K84: 0.02380952381 | L84: 0.02380952381 | M84: 0.02380952381 | N84: 0.02380952381 | O84: 0.02380952381 | P84: 0.02380952381 | Q84: 0.02380952381 | R84: =SUM(D84:Q84) -> 0.3333333333
B85: 要介護3～5 | D85: 0.02380952381 | E85: 0.02380952381 | F85: 0.02380952381 | G85: 0.02380952381 | H85: 0.02380952381 | I85: 0.02380952381 | J85: 0.02380952381 | K85: 0.02380952381 | L85: 0.02380952381 | M85: 0.02380952381 | N85: 0.02380952381 | O85: 0.02380952381 | P85: 0.02380952381 | Q85: 0.02380952381 | R85: 0.3333333333
B86: 合計 | D86: =SUM(D83:D85) -> 0.07142857143 | E86: =SUM(E83:E85) -> 0.07142857143 | F86: 0.07142857143 | G86: 0.07142857143 | H86: 0.07142857143 | I86: 0.07142857143 | J86: 0.07142857143 | K86: 0.07142857143 | L86: 0.07142857143 | M86: 0.07142857143 | N86: 0.07142857143 | O86: 0.07142857143 | P86: 0.07142857143 | Q86: 0.07142857143 | R86: =SUM(D86:Q86) -> 1
B89: 全体
B90: 特別な医療の種類別の居所（中心静脈栄養） | D90: 居宅 | E90: 特養 | F90: 老健 | G90: 介護療養 | H90: GH | I90: 特定施設 | J90: 医療療養 | K90: 医療機関 | L90: その他施設 | M90: 介護医療院 | N90: 養護 | O90: 軽費 | P90: 有料 | Q90: サ高住 | R90: 合計
B91: 要支援1～2 | D91: =1/42 -> 0.02380952381 | E91: =1/42 -> 0.02380952381 | F91: 0.02380952381 | G91: 0.02380952381 | H91: 0.02380952381 | I91: 0.02380952381 | J91: 0.02380952381 | K91: 0.02380952381 | L91: 0.02380952381 | M91: 0.02380952381 | N91: 0.02380952381 | O91: 0.02380952381 | P91: 0.02380952381 | Q91: 0.02380952381 | R91: =SUM(D91:Q91) -> 0.3333333333
B92: 要介護1～2 | D92: =1/42 -> 0.02380952381 | E92: 0.02380952381 | F92: 0.02380952381 | G92: 0.02380952381 | H92: 0.02380952381 | I92: 0.02380952381 | J92: 0.02380952381 | K92: 0.02380952381 | L92: 0.02380952381 | M92: 0.02380952381 | N92: 0.02380952381 | O92: 0.02380952381 | P92: 0.02380952381 | Q92: 0.02380952381 | R92: =SUM(D92:Q92) -> 0.3333333333
B93: 要介護3～5 | D93: 0.02380952381 | E93: 0.02380952381 | F93: 0.02380952381 | G93: 0.02380952381 | H93: 0.02380952381 | I93: 0.02380952381 | J93: 0.02380952381 | K93: 0.02380952381 | L93: 0.02380952381 | M93: 0.02380952381 | N93: 0.02380952381 | O93: 0.02380952381 | P93: 0.02380952381 | Q93: 0.02380952381 | R93: 0.3333333333
B94: 合計 | D94: =SUM(D91:D93) -> 0.07142857143 | E94: =SUM(E91:E93) -> 0.07142857143 | F94: 0.07142857143 | G94: 0.07142857143 | H94: 0.07142857143 | I94: 0.07142857143 | J94: 0.07142857143 | K94: 0.07142857143 | L94: 0.07142857143 | M94: 0.07142857143 | N94: 0.07142857143 | O94: 0.07142857143 | P94: 0.07142857143 | Q94: 0.07142857143 | R94: =SUM(D94:Q94) -> 1
B97: 全体
B98: 特別な医療の種類別の居所（透析） | D98: 居宅 | E98: 特養 | F98: 老健 | G98: 介護療養 | H98: GH | I98: 特定施設 | J98: 医療療養 | K98: 医療機関 | L98: その他施設 | M98: 介護医療院 | N98: 養護 | O98: 軽費 | P98: 有料 | Q98: サ高住 | R98: 合計
B99: 要支援1～2 | D99: =1/42 -> 0.02380952381 | E99: =1/42 -> 0.02380952381 | F99: 0.02380952381 | G99: 0.02380952381 | H99: 0.02380952381 | I99: 0.02380952381 | J99: 0.02380952381 | K99: 0.02380952381 | L99: 0.02380952381 | M99: 0.02380952381 | N99: 0.02380952381 | O99: 0.02380952381 | P99: 0.02380952381 | Q99: 0.02380952381 | R99: =SUM(D99:Q99) -> 0.3333333333
B100: 要介護1～2 | D100: =1/42 -> 0.02380952381 | E100: 0.02380952381 | F100: 0.02380952381 | G100: 0.02380952381 | H100: 0.02380952381 | I100: 0.02380952381 | J100: 0.02380952381 | K100: 0.02380952381 | L100: 0.02380952381 | M100: 0.02380952381 | N100: 0.02380952381 | O100: 0.02380952381 | P100: 0.02380952381 | Q100: 0.02380952381 | R100: =SUM(D100:Q100) -> 0.3333333333
B101: 要介護3～5 | D101: 0.02380952381 | E101: 0.02380952381 | F101: 0.02380952381 | G101: 0.02380952381 | H101: 0.02380952381 | I101: 0.02380952381 | J101: 0.02380952381 | K101: 0.02380952381 | L101: 0.02380952381 | M101: 0.02380952381 | N101: 0.02380952381 | O101: 0.02380952381 | P101: 0.02380952381 | Q101: 0.02380952381 | R101: 0.3333333333
B102: 合計 | D102: =SUM(D99:D101) -> 0.07142857143 | E102: =SUM(E99:E101) -> 0.07142857143 | F102: 0.07142857143 | G102: 0.07142857143 | H102: 0.07142857143 | I102: 0.07142857143 | J102: 0.07142857143 | K102: 0.07142857143 | L102: 0.07142857143 | M102: 0.07142857143 | N102: 0.07142857143 | O102: 0.07142857143 | P102: 0.07142857143 | Q102: 0.07142857143 | R102: =SUM(D102:Q102) -> 1
B105: 全体
B106: 特別な医療の種類別の居所（ストーマの処置） | D106: 居宅 | E106: 特養 | F106: 老健 | G106: 介護療養 | H106: GH | I106: 特定施設 | J106: 医療療養 | K106: 医療機関 | L106: その他施設 | M106: 介護医療院 | N106: 養護 | O106: 軽費 | P106: 有料 | Q106: サ高住 | R106: 合計
B107: 要支援1～2 | D107: =1/42 -> 0.02380952381 | E107: =1/42 -> 0.02380952381 | F107: 0.02380952381 | G107: 0.02380952381 | H107: 0.02380952381 | I107: 0.02380952381 | J107: 0.02380952381 | K107: 0.02380952381 | L107: 0.02380952381 | M107: 0.02380952381 | N107: 0.02380952381 | O107: 0.02380952381 | P107: 0.02380952381 | Q107: 0.02380952381 | R107: =SUM(D107:Q107) -> 0.3333333333
B108: 要介護1～2 | D108: =1/42 -> 0.02380952381 | E108: 0.02380952381 | F108: 0.02380952381 | G108: 0.02380952381 | H108: 0.02380952381 | I108: 0.02380952381 | J108: 0.02380952381 | K108: 0.02380952381 | L108: 0.02380952381 | M108: 0.02380952381 | N108: 0.02380952381 | O108: 0.02380952381 | P108: 0.02380952381 | Q108: 0.02380952381 | R108: =SUM(D108:Q108) -> 0.3333333333
B109: 要介護3～5 | D109: 0.02380952381 | E109: 0.02380952381 | F109: 0.02380952381 | G109: 0.02380952381 | H109: 0.02380952381 | I109: 0.02380952381 | J109: 0.02380952381 | K109: 0.02380952381 | L109: 0.02380952381 | M109: 0.02380952381 | N109: 0.02380952381 | O109: 0.02380952381 | P109: 0.02380952381 | Q109: 0.02380952381 | R109: 0.3333333333
B110: 合計 | D110: =SUM(D107:D109) -> 0.07142857143 | E110: =SUM(E107:E109) -> 0.07142857143 | F110: 0.07142857143 | G110: 0.07142857143 | H110: 0.07142857143 | I110: 0.07142857143 | J110: 0.07142857143 | K110: 0.07142857143 | L110: 0.07142857143 | M110: 0.07142857143 | N110: 0.07142857143 | O110: 0.07142857143 | P110: 0.07142857143 | Q110: 0.07142857143 | R110: =SUM(D110:Q110) -> 1
B113: 全体
B114: 特別な医療の種類別の居所（酸素療法） | D114: 居宅 | E114: 特養 | F114: 老健 | G114: 介護療養 | H114: GH | I114: 特定施設 | J114: 医療療養 | K114: 医療機関 | L114: その他施設 | M114: 介護医療院 | N114: 養護 | O114: 軽費 | P114: 有料 | Q114: サ高住 | R114: 合計
B115: 要支援1～2 | D115: =1/42 -> 0.02380952381 | E115: =1/42 -> 0.02380952381 | F115: 0.02380952381 | G115: 0.02380952381 | H115: 0.02380952381 | I115: 0.02380952381 | J115: 0.02380952381 | K115: 0.02380952381 | L115: 0.02380952381 | M115: 0.02380952381 | N115: 0.02380952381 | O115: 0.02380952381 | P115: 0.02380952381 | Q115: 0.02380952381 | R115: =SUM(D115:Q115) -> 0.3333333333
B116: 要介護1～2 | D116: =1/42 -> 0.02380952381 | E116: 0.02380952381 | F116: 0.02380952381 | G116: 0.02380952381 | H116: 0.02380952381 | I116: 0.02380952381 | J116: 0.02380952381 | K116: 0.02380952381 | L116: 0.02380952381 | M116: 0.02380952381 | N116: 0.02380952381 | O116: 0.02380952381 | P116: 0.02380952381 | Q116: 0.02380952381 | R116: =SUM(D116:Q116) -> 0.3333333333
B117: 要介護3～5 | D117: 0.02380952381 | E117: 0.02380952381 | F117: 0.02380952381 | G117: 0.02380952381 | H117: 0.02380952381 | I117: 0.02380952381 | J117: 0.02380952381 | K117: 0.02380952381 | L117: 0.02380952381 | M117: 0.02380952381 | N117: 0.02380952381 | O117: 0.02380952381 | P117: 0.02380952381 | Q117: 0.02380952381 | R117: 0.3333333333
B118: 合計 | D118: =SUM(D115:D117) -> 0.07142857143 | E118: =SUM(E115:E117) -> 0.07142857143 | F118: 0.07142857143 | G118: 0.07142857143 | H118: 0.07142857143 | I118: 0.07142857143 | J118: 0.07142857143 | K118: 0.07142857143 | L118: 0.07142857143 | M118: 0.07142857143 | N118: 0.07142857143 | O118: 0.07142857143 | P118: 0.07142857143 | Q118: 0.07142857143 | R118: =SUM(D118:Q118) -> 1
B121: 全体
B122: 特別な医療の種類別の居所（レスピレーター） | D122: 居宅 | E122: 特養 | F122: 老健 | G122: 介護療養 | H122: GH | I122: 特定施設 | J122: 医療療養 | K122: 医療機関 | L122: その他施設 | M122: 介護医療院 | N122: 養護 | O122: 軽費 | P122: 有料 | Q122: サ高住 | R122: 合計
B123: 要支援1～2 | D123: =1/42 -> 0.02380952381 | E123: =1/42 -> 0.02380952381 | F123: 0.02380952381 | G123: 0.02380952381 | H123: 0.02380952381 | I123: 0.02380952381 | J123: 0.02380952381 | K123: 0.02380952381 | L123: 0.02380952381 | M123: 0.02380952381 | N123: 0.02380952381 | O123: 0.02380952381 | P123: 0.02380952381 | Q123: 0.02380952381 | R123: =SUM(D123:Q123) -> 0.3333333333
B124: 要介護1～2 | D124: =1/42 -> 0.02380952381 | E124: 0.02380952381 | F124: 0.02380952381 | G124: 0.02380952381 | H124: 0.02380952381 | I124: 0.02380952381 | J124: 0.02380952381 | K124: 0.02380952381 | L124: 0.02380952381 | M124: 0.02380952381 | N124: 0.02380952381 | O124: 0.02380952381 | P124: 0.02380952381 | Q124: 0.02380952381 | R124: =SUM(D124:Q124) -> 0.3333333333
B125: 要介護3～5 | D125: 0.02380952381 | E125: 0.02380952381 | F125: 0.02380952381 | G125: 0.02380952381 | H125: 0.02380952381 | I125: 0.02380952381 | J125: 0.02380952381 | K125: 0.02380952381 | L125: 0.02380952381 | M125: 0.02380952381 | N125: 0.02380952381 | O125: 0.02380952381 | P125: 0.02380952381 | Q125: 0.02380952381 | R125: 0.3333333333
B126: 合計 | D126: =SUM(D123:D125) -> 0.07142857143 | E126: =SUM(E123:E125) -> 0.07142857143 | F126: 0.07142857143 | G126: 0.07142857143 | H126: 0.07142857143 | I126: 0.07142857143 | J126: 0.07142857143 | K126: 0.07142857143 | L126: 0.07142857143 | M126: 0.07142857143 | N126: 0.07142857143 | O126: 0.07142857143 | P126: 0.07142857143 | Q126: 0.07142857143 | R126: =SUM(D126:Q126) -> 1
B129: 全体
B130: 特別な医療の種類別の居所（気管切開の処置） | D130: 居宅 | E130: 特養 | F130: 老健 | G130: 介護療養 | H130: GH | I130: 特定施設 | J130: 医療療養 | K130: 医療機関 | L130: その他施設 | M130: 介護医療院 | N130: 養護 | O130: 軽費 | P130: 有料 | Q130: サ高住 | R130: 合計
B131: 要支援1～2 | D131: =1/42 -> 0.02380952381 | E131: =1/42 -> 0.02380952381 | F131: 0.02380952381 | G131: 0.02380952381 | H131: 0.02380952381 | I131: 0.02380952381 | J131: 0.02380952381 | K131: 0.02380952381 | L131: 0.02380952381 | M131: 0.02380952381 | N131: 0.02380952381 | O131: 0.02380952381 | P131: 0.02380952381 | Q131: 0.02380952381 | R131: =SUM(D131:Q131) -> 0.3333333333
B132: 要介護1～2 | D132: =1/42 -> 0.02380952381 | E132: 0.02380952381 | F132: 0.02380952381 | G132: 0.02380952381 | H132: 0.02380952381 | I132: 0.02380952381 | J132: 0.02380952381 | K132: 0.02380952381 | L132: 0.02380952381 | M132: 0.02380952381 | N132: 0.02380952381 | O132: 0.02380952381 | P132: 0.02380952381 | Q132: 0.02380952381 | R132: =SUM(D132:Q132) -> 0.3333333333
B133: 要介護3～5 | D133: 0.02380952381 | E133: 0.02380952381 | F133: 0.02380952381 | G133: 0.02380952381 | H133: 0.02380952381 | I133: 0.02380952381 | J133: 0.02380952381 | K133: 0.02380952381 | L133: 0.02380952381 | M133: 0.02380952381 | N133: 0.02380952381 | O133: 0.02380952381 | P133: 0.02380952381 | Q133: 0.02380952381 | R133: 0.3333333333
B134: 合計 | D134: =SUM(D131:D133) -> 0.07142857143 | E134: =SUM(E131:E133) -> 0.07142857143 | F134: 0.07142857143 | G134: 0.07142857143 | H134: 0.07142857143 | I134: 0.07142857143 | J134: 0.07142857143 | K134: 0.07142857143 | L134: 0.07142857143 | M134: 0.07142857143 | N134: 0.07142857143 | O134: 0.07142857143 | P134: 0.07142857143 | Q134: 0.07142857143 | R134: =SUM(D134:Q134) -> 1
B137: 全体
B138: 特別な医療の種類別の居所（疼痛の看護） | D138: 居宅 | E138: 特養 | F138: 老健 | G138: 介護療養 | H138: GH | I138: 特定施設 | J138: 医療療養 | K138: 医療機関 | L138: その他施設 | M138: 介護医療院 | N138: 養護 | O138: 軽費 | P138: 有料 | Q138: サ高住 | R138: 合計
B139: 要支援1～2 | D139: =1/42 -> 0.02380952381 | E139: =1/42 -> 0.02380952381 | F139: 0.02380952381 | G139: 0.02380952381 | H139: 0.02380952381 | I139: 0.02380952381 | J139: 0.02380952381 | K139: 0.02380952381 | L139: 0.02380952381 | M139: 0.02380952381 | N139: 0.02380952381 | O139: 0.02380952381 | P139: 0.02380952381 | Q139: 0.02380952381 | R139: =SUM(D139:Q139) -> 0.3333333333
B140: 要介護1～2 | D140: =1/42 -> 0.02380952381 | E140: 0.02380952381 | F140: 0.02380952381 | G140: 0.02380952381 | H140: 0.02380952381 | I140: 0.02380952381 | J140: 0.02380952381 | K140: 0.02380952381 | L140: 0.02380952381 | M140: 0.02380952381 | N140: 0.02380952381 | O140: 0.02380952381 | P140: 0.02380952381 | Q140: 0.02380952381 | R140: =SUM(D140:Q140) -> 0.3333333333
B141: 要介護3～5 | D141: 0.02380952381 | E141: 0.02380952381 | F141: 0.02380952381 | G141: 0.02380952381 | H141: 0.02380952381 | I141: 0.02380952381 | J141: 0.02380952381 | K141: 0.02380952381 | L141: 0.02380952381 | M141: 0.02380952381 | N141: 0.02380952381 | O141: 0.02380952381 | P141: 0.02380952381 | Q141: 0.02380952381 | R141: 0.3333333333
B142: 合計 | D142: =SUM(D139:D141) -> 0.07142857143 | E142: =SUM(E139:E141) -> 0.07142857143 | F142: 0.07142857143 | G142: 0.07142857143 | H142: 0.07142857143 | I142: 0.07142857143 | J142: 0.07142857143 | K142: 0.07142857143 | L142: 0.07142857143 | M142: 0.07142857143 | N142: 0.07142857143 | O142: 0.07142857143 | P142: 0.07142857143 | Q142: 0.07142857143 | R142: =SUM(D142:Q142) -> 1
B145: 全体
B146: 特別な医療の種類別の居所（経管栄養） | D146: 居宅 | E146: 特養 | F146: 老健 | G146: 介護療養 | H146: GH | I146: 特定施設 | J146: 医療療養 | K146: 医療機関 | L146: その他施設 | M146: 介護医療院 | N146: 養護 | O146: 軽費 | P146: 有料 | Q146: サ高住 | R146: 合計
B147: 要支援1～2 | D147: =1/42 -> 0.02380952381 | E147: =1/42 -> 0.02380952381 | F147: 0.02380952381 | G147: 0.02380952381 | H147: 0.02380952381 | I147: 0.02380952381 | J147: 0.02380952381 | K147: 0.02380952381 | L147: 0.02380952381 | M147: 0.02380952381 | N147: 0.02380952381 | O147: 0.02380952381 | P147: 0.02380952381 | Q147: 0.02380952381 | R147: =SUM(D147:Q147) -> 0.3333333333
B148: 要介護1～2 | D148: =1/42 -> 0.02380952381 | E148: 0.02380952381 | F148: 0.02380952381 | G148: 0.02380952381 | H148: 0.02380952381 | I148: 0.02380952381 | J148: 0.02380952381 | K148: 0.02380952381 | L148: 0.02380952381 | M148: 0.02380952381 | N148: 0.02380952381 | O148: 0.02380952381 | P148: 0.02380952381 | Q148: 0.02380952381 | R148: =SUM(D148:Q148) -> 0.3333333333
B149: 要介護3～5 | D149: 0.02380952381 | E149: 0.02380952381 | F149: 0.02380952381 | G149: 0.02380952381 | H149: 0.02380952381 | I149: 0.02380952381 | J149: 0.02380952381 | K149: 0.02380952381 | L149: 0.02380952381 | M149: 0.02380952381 | N149: 0.02380952381 | O149: 0.02380952381 | P149: 0.02380952381 | Q149: 0.02380952381 | R149: 0.3333333333
B150: 合計 | D150: =SUM(D147:D149) -> 0.07142857143 | E150: =SUM(E147:E149) -> 0.07142857143 | F150: 0.07142857143 | G150: 0.07142857143 | H150: 0.07142857143 | I150: 0.07142857143 | J150: 0.07142857143 | K150: 0.07142857143 | L150: 0.07142857143 | M150: 0.07142857143 | N150: 0.07142857143 | O150: 0.07142857143 | P150: 0.07142857143 | Q150: 0.07142857143 | R150: =SUM(D150:Q150) -> 1
B153: 全体
B154: 特別な医療の種類別の居所（モニター測定） | D154: 居宅 | E154: 特養 | F154: 老健 | G154: 介護療養 | H154: GH | I154: 特定施設 | J154: 医療療養 | K154: 医療機関 | L154: その他施設 | M154: 介護医療院 | N154: 養護 | O154: 軽費 | P154: 有料 | Q154: サ高住 | R154: 合計
B155: 要支援1～2 | D155: =1/42 -> 0.02380952381 | E155: =1/42 -> 0.02380952381 | F155: 0.02380952381 | G155: 0.02380952381 | H155: 0.02380952381 | I155: 0.02380952381 | J155: 0.02380952381 | K155: 0.02380952381 | L155: 0.02380952381 | M155: 0.02380952381 | N155: 0.02380952381 | O155: 0.02380952381 | P155: 0.02380952381 | Q155: 0.02380952381 | R155: =SUM(D155:Q155) -> 0.3333333333
B156: 要介護1～2 | D156: =1/42 -> 0.02380952381 | E156: 0.02380952381 | F156: 0.02380952381 | G156: 0.02380952381 | H156: 0.02380952381 | I156: 0.02380952381 | J156: 0.02380952381 | K156: 0.02380952381 | L156: 0.02380952381 | M156: 0.02380952381 | N156: 0.02380952381 | O156: 0.02380952381 | P156: 0.02380952381 | Q156: 0.02380952381 | R156: =SUM(D156:Q156) -> 0.3333333333
B157: 要介護3～5 | D157: 0.02380952381 | E157: 0.02380952381 | F157: 0.02380952381 | G157: 0.02380952381 | H157: 0.02380952381 | I157: 0.02380952381 | J157: 0.02380952381 | K157: 0.02380952381 | L157: 0.02380952381 | M157: 0.02380952381 | N157: 0.02380952381 | O157: 0.02380952381 | P157: 0.02380952381 | Q157: 0.02380952381 | R157: 0.3333333333
B158: 合計 | D158: =SUM(D155:D157) -> 0.07142857143 | E158: =SUM(E155:E157) -> 0.07142857143 | F158: 0.07142857143 | G158: 0.07142857143 | H158: 0.07142857143 | I158: 0.07142857143 | J158: 0.07142857143 | K158: 0.07142857143 | L158: 0.07142857143 | M158: 0.07142857143 | N158: 0.07142857143 | O158: 0.07142857143 | P158: 0.07142857143 | Q158: 0.07142857143 | R158: =SUM(D158:Q158) -> 1
B161: 全体
B162: 特別な医療の種類別の居所（じょくそうの処置） | D162: 居宅 | E162: 特養 | F162: 老健 | G162: 介護療養 | H162: GH | I162: 特定施設 | J162: 医療療養 | K162: 医療機関 | L162: その他施設 | M162: 介護医療院 | N162: 養護 | O162: 軽費 | P162: 有料 | Q162: サ高住 | R162: 合計
B163: 要支援1～2 | D163: =1/42 -> 0.02380952381 | E163: =1/42 -> 0.02380952381 | F163: 0.02380952381 | G163: 0.02380952381 | H163: 0.02380952381 | I163: 0.02380952381 | J163: 0.02380952381 | K163: 0.02380952381 | L163: 0.02380952381 | M163: 0.02380952381 | N163: 0.02380952381 | O163: 0.02380952381 | P163: 0.02380952381 | Q163: 0.02380952381 | R163: =SUM(D163:Q163) -> 0.3333333333
B164: 要介護1～2 | D164: =1/42 -> 0.02380952381 | E164: 0.02380952381 | F164: 0.02380952381 | G164: 0.02380952381 | H164: 0.02380952381 | I164: 0.02380952381 | J164: 0.02380952381 | K164: 0.02380952381 | L164: 0.02380952381 | M164: 0.02380952381 | N164: 0.02380952381 | O164: 0.02380952381 | P164: 0.02380952381 | Q164: 0.02380952381 | R164: =SUM(D164:Q164) -> 0.3333333333
B165: 要介護3～5 | D165: 0.02380952381 | E165: 0.02380952381 | F165: 0.02380952381 | G165: 0.02380952381 | H165: 0.02380952381 | I165: 0.02380952381 | J165: 0.02380952381 | K165: 0.02380952381 | L165: 0.02380952381 | M165: 0.02380952381 | N165: 0.02380952381 | O165: 0.02380952381 | P165: 0.02380952381 | Q165: 0.02380952381 | R165: 0.3333333333
B166: 合計 | D166: =SUM(D163:D165) -> 0.07142857143 | E166: =SUM(E163:E165) -> 0.07142857143 | F166: 0.07142857143 | G166: 0.07142857143 | H166: 0.07142857143 | I166: 0.07142857143 | J166: 0.07142857143 | K166: 0.07142857143 | L166: 0.07142857143 | M166: 0.07142857143 | N166: 0.07142857143 | O166: 0.07142857143 | P166: 0.07142857143 | Q166: 0.07142857143 | R166: =SUM(D166:Q166) -> 1
B169: 全体
B170: 特別な医療の種類別の居所（カテーテル） | D170: 居宅 | E170: 特養 | F170: 老健 | G170: 介護療養 | H170: GH | I170: 特定施設 | J170: 医療療養 | K170: 医療機関 | L170: その他施設 | M170: 介護医療院 | N170: 養護 | O170: 軽費 | P170: 有料 | Q170: サ高住 | R170: 合計
B171: 要支援1～2 | D171: =1/42 -> 0.02380952381 | E171: =1/42 -> 0.02380952381 | F171: 0.02380952381 | G171: 0.02380952381 | H171: 0.02380952381 | I171: 0.02380952381 | J171: 0.02380952381 | K171: 0.02380952381 | L171: 0.02380952381 | M171: 0.02380952381 | N171: 0.02380952381 | O171: 0.02380952381 | P171: 0.02380952381 | Q171: 0.02380952381 | R171: =SUM(D171:Q171) -> 0.3333333333
B172: 要介護1～2 | D172: =1/42 -> 0.02380952381 | E172: 0.02380952381 | F172: 0.02380952381 | G172: 0.02380952381 | H172: 0.02380952381 | I172: 0.02380952381 | J172: 0.02380952381 | K172: 0.02380952381 | L172: 0.02380952381 | M172: 0.02380952381 | N172: 0.02380952381 | O172: 0.02380952381 | P172: 0.02380952381 | Q172: 0.02380952381 | R172: =SUM(D172:Q172) -> 0.3333333333
B173: 要介護3～5 | D173: 0.02380952381 | E173: 0.02380952381 | F173: 0.02380952381 | G173: 0.02380952381 | H173: 0.02380952381 | I173: 0.02380952381 | J173: 0.02380952381 | K173: 0.02380952381 | L173: 0.02380952381 | M173: 0.02380952381 | N173: 0.02380952381 | O173: 0.02380952381 | P173: 0.02380952381 | Q173: 0.02380952381 | R173: 0.3333333333
B174: 合計 | D174: =SUM(D171:D173) -> 0.07142857143 | E174: =SUM(E171:E173) -> 0.07142857143 | F174: 0.07142857143 | G174: 0.07142857143 | H174: 0.07142857143 | I174: 0.07142857143 | J174: 0.07142857143 | K174: 0.07142857143 | L174: 0.07142857143 | M174: 0.07142857143 | N174: 0.07142857143 | O174: 0.07142857143 | P174: 0.07142857143 | Q174: 0.07142857143 | R174: =SUM(D174:Q174) -> 1
B177: 全体
B178: 要介護度別の認知症高齢者の日常生活自立度 | D178: 自立 | E178: Ⅰ | F178: Ⅱa | G178: Ⅱb | H178: Ⅲa | I178: Ⅲb | J178: Ⅳ | K178: M | L178: 合計
B179: 要支援1 | D179: 0.125 | E179: 0.125 | F179: 0.125 | G179: 0.125 | H179: 0.125 | I179: 0.125 | J179: 0.125 | K179: 0.125 | L179: =SUM(D179:K179) -> 1
B180: 要支援2 | D180: 0.125 | E180: 0.125 | F180: 0.125 | G180: 0.125 | H180: 0.125 | I180: 0.125 | J180: 0.125 | K180: 0.125 | L180: =SUM(D180:K180) -> 1
B181: 要介護1 | D181: 0.125 | E181: 0.125 | F181: 0.125 | G181: 0.125 | H181: 0.125 | I181: 0.125 | J181: 0.125 | K181: 0.125 | L181: 1
B182: 要介護2 | D182: 0.125 | E182: 0.125 | F182: 0.125 | G182: 0.125 | H182: 0.125 | I182: 0.125 | J182: 0.125 | K182: 0.125 | L182: 1
B183: 要介護3 | D183: 0.125 | E183: 0.125 | F183: 0.125 | G183: 0.125 | H183: 0.125 | I183: 0.125 | J183: 0.125 | K183: 0.125 | L183: 1
B184: 要介護4 | D184: 0.125 | E184: 0.125 | F184: 0.125 | G184: 0.125 | H184: 0.125 | I184: 0.125 | J184: 0.125 | K184: 0.125 | L184: 1
B185: 要介護5 | D185: 0.125 | E185: 0.125 | F185: 0.125 | G185: 0.125 | H185: 0.125 | I185: 0.125 | J185: 0.125 | K185: 0.125 | L185: 1
B188: 全体
B189: 年齢別の認知症高齢者の日常生活自立度 | D189: 自立 | E189: Ⅰ | F189: Ⅱa | G189: Ⅱb | H189: Ⅲa | I189: Ⅲb | J189: Ⅳ | K189: M | L189: 合計
B190: 65歳未満 | D190: 0.125 | E190: 0.125 | F190: 0.125 | G190: 0.125 | H190: 0.125 | I190: 0.125 | J190: 0.125 | K190: 0.125 | L190: =SUM(D190:K190) -> 1
B191: 65～69歳 | D191: 0.125 | E191: 0.125 | F191: 0.125 | G191: 0.125 | H191: 0.125 | I191: 0.125 | J191: 0.125 | K191: 0.125 | L191: =SUM(D191:K191) -> 1
B192: 70～74歳 | D192: 0.125 | E192: 0.125 | F192: 0.125 | G192: 0.125 | H192: 0.125 | I192: 0.125 | J192: 0.125 | K192: 0.125 | L192: 1
B193: 75～79歳 | D193: 0.125 | E193: 0.125 | F193: 0.125 | G193: 0.125 | H193: 0.125 | I193: 0.125 | J193: 0.125 | K193: 0.125 | L193: 1
B194: 80～84歳 | D194: 0.125 | E194: 0.125 | F194: 0.125 | G194: 0.125 | H194: 0.125 | I194: 0.125 | J194: 0.125 | K194: 0.125 | L194: 1
B195: 85～89歳 | D195: 0.125 | E195: 0.125 | F195: 0.125 | G195: 0.125 | H195: 0.125 | I195: 0.125 | J195: 0.125 | K195: 0.125 | L195: 1
B196: 90～94歳 | D196: 0.125 | E196: 0.125 | F196: 0.125 | G196: 0.125 | H196: 0.125 | I196: 0.125 | J196: 0.125 | K196: 0.125 | L196: 1
B197: 95～99歳 | D197: 0.125 | E197: 0.125 | F197: 0.125 | G197: 0.125 | H197: 0.125 | I197: 0.125 | J197: 0.125 | K197: 0.125 | L197: 1
B198: 100歳以上 | D198: 0.125 | E198: 0.125 | F198: 0.125 | G198: 0.125 | H198: 0.125 | I198: 0.125 | J198: 0.125 | K198: 0.125 | L198: 1
B201: 全体
B202: 年齢別の要介護度 | D202: 要支援1 | E202: 要支援2 | F202: 要介護1 | G202: 要介護2 | H202: 要介護3 | I202: 要介護4 | J202: 要介護5 | K202: 合計
B203: 65歳未満 | D203: =1/7 -> 0.1428571429 | E203: =1/7 -> 0.1428571429 | F203: 0.1428571429 | G203: 0.1428571429 | H203: 0.1428571429 | I203: 0.1428571429 | J203: 0.1428571429 | K203: =SUM(D203:J203) -> 1
B204: 65～69歳 | D204: =1/7 -> 0.1428571429 | E204: 0.1428571429 | F204: 0.1428571429 | G204: 0.1428571429 | H204: 0.1428571429 | I204: 0.1428571429 | J204: 0.1428571429 | K204: =SUM(D204:J204) -> 1
B205: 70～74歳 | D205: 0.1428571429 | E205: 0.1428571429 | F205: 0.1428571429 | G205: 0.1428571429 | H205: 0.1428571429 | I205: 0.1428571429 | J205: 0.1428571429 | K205: 1
B206: 75～79歳 | D206: 0.1428571429 | E206: 0.1428571429 | F206: 0.1428571429 | G206: 0.1428571429 | H206: 0.1428571429 | I206: 0.1428571429 | J206: 0.1428571429 | K206: 1
B207: 80～84歳 | D207: 0.1428571429 | E207: 0.1428571429 | F207: 0.1428571429 | G207: 0.1428571429 | H207: 0.1428571429 | I207: 0.1428571429 | J207: 0.1428571429 | K207: 1
B208: 85～89歳 | D208: 0.1428571429 | E208: 0.1428571429 | F208: 0.1428571429 | G208: 0.1428571429 | H208: 0.1428571429 | I208: 0.1428571429 | J208: 0.1428571429 | K208: 1
B209: 90～94歳 | D209: 0.1428571429 | E209: 0.1428571429 | F209: 0.1428571429 | G209: 0.1428571429 | H209: 0.1428571429 | I209: 0.1428571429 | J209: 0.1428571429 | K209: 1
B210: 95～99歳 | D210: 0.1428571429 | E210: 0.1428571429 | F210: 0.1428571429 | G210: 0.1428571429 | H210: 0.1428571429 | I210: 0.1428571429 | J210: 0.1428571429 | K210: 1
B211: 100歳以上 | D211: 0.1428571429 | E211: 0.1428571429 | F211: 0.1428571429 | G211: 0.1428571429 | H211: 0.1428571429 | I211: 0.1428571429 | J211: 0.1428571429 | K211: =SUM(D211:J211) -> 1
B214: 全体
B215: 居所別・訪問系サービス利用の回数 | D215: 0回 | E215: 1～4回 | F215: 5～14回 | G215: 15～24回 | H215: 25～31回 | I215: 32～49回 | J215: 50回以上 | K215: 合計
B216: 居宅 | D216: =1/7 -> 0.1428571429 | E216: =1/7 -> 0.1428571429 | F216: 0.1428571429 | G216: 0.1428571429 | H216: 0.1428571429 | I216: 0.1428571429 | J216: 0.1428571429 | K216: =SUM(D216:J216) -> 1
B217: 有料 | D217: =1/7 -> 0.1428571429 | E217: 0.1428571429 | F217: 0.1428571429 | G217: 0.1428571429 | H217: 0.1428571429 | I217: 0.1428571429 | J217: 0.1428571429 | K217: =SUM(D217:J217) -> 1
B218: サ高住 | D218: 0.1428571429 | E218: 0.1428571429 | F218: 0.1428571429 | G218: 0.1428571429 | H218: 0.1428571429 | I218: 0.1428571429 | J218: 0.1428571429 | K218: 1
B219: 有料+サ高住 | D219: 0.1428571429 | E219: 0.1428571429 | F219: 0.1428571429 | G219: 0.1428571429 | H219: 0.1428571429 | I219: 0.1428571429 | J219: 0.1428571429 | K219: =SUM(D219:J219) -> 1
B222: 全体
B223: 居所別・訪問介護利用の回数 | D223: 0回 | E223: 1～4回 | F223: 5～14回 | G223: 15～24回 | H223: 25～31回 | I223: 32～49回 | J223: 50回以上 | K223: 合計
B224: 居宅 | D224: =1/7 -> 0.1428571429 | E224: =1/7 -> 0.1428571429 | F224: 0.1428571429 | G224: 0.1428571429 | H224: 0.1428571429 | I224: 0.1428571429 | J224: 0.1428571429 | K224: =SUM(D224:J224) -> 1
B225: 有料 | D225: =1/7 -> 0.1428571429 | E225: 0.1428571429 | F225: 0.1428571429 | G225: 0.1428571429 | H225: 0.1428571429 | I225: 0.1428571429 | J225: 0.1428571429 | K225: =SUM(D225:J225) -> 1
B226: サ高住 | D226: 0.1428571429 | E226: 0.1428571429 | F226: 0.1428571429 | G226: 0.1428571429 | H226: 0.1428571429 | I226: 0.1428571429 | J226: 0.1428571429 | K226: 1
B227: 有料+サ高住 | D227: 0.1428571429 | E227: 0.1428571429 | F227: 0.1428571429 | G227: 0.1428571429 | H227: 0.1428571429 | I227: 0.1428571429 | J227: 0.1428571429 | K227: 1
B230: 全体
B231: 居所別・訪問看護利用の回数 | D231: 0回 | E231: 1～4回 | F231: 5～14回 | G231: 15～24回 | H231: 25～31回 | I231: 32～49回 | J231: 50回以上 | K231: 合計
B232: 居宅 | D232: =1/7 -> 0.1428571429 | E232: =1/7 -> 0.1428571429 | F232: 0.1428571429 | G232: 0.1428571429 | H232: 0.1428571429 | I232: 0.1428571429 | J232: 0.1428571429 | K232: =SUM(D232:J232) -> 1
B233: 有料 | D233: =1/7 -> 0.1428571429 | E233: 0.1428571429 | F233: 0.1428571429 | G233: 0.1428571429 | H233: 0.1428571429 | I233: 0.1428571429 | J233: 0.1428571429 | K233: =SUM(D233:J233) -> 1
B234: サ高住 | D234: 0.1428571429 | E234: 0.1428571429 | F234: 0.1428571429 | G234: 0.1428571429 | H234: 0.1428571429 | I234: 0.1428571429 | J234: 0.1428571429 | K234: 1
B235: 有料+サ高住 | D235: 0.1428571429 | E235: 0.1428571429 | F235: 0.1428571429 | G235: 0.1428571429 | H235: 0.1428571429 | I235: 0.1428571429 | J235: 0.1428571429 | K235: 1
B238: 全体
B239: 居所別・通所系サービス利用の回数 | D239: 0回 | E239: 1～4回 | F239: 5～9回 | G239: 10～14回 | H239: 15～24回 | I239: 25回以上 | J239: 合計
B240: 居宅 | D240: =1/6 -> 0.1666666667 | E240: =1/6 -> 0.1666666667 | F240: 0.1666666667 | G240: 0.1666666667 | H240: 0.1666666667 | I240: 0.1666666667 | J240: =SUM(D240:I240) -> 1
B241: 有料 | D241: =1/6 -> 0.1666666667 | E241: 0.1666666667 | F241: 0.1666666667 | G241: 0.1666666667 | H241: 0.1666666667 | I241: 0.1666666667 | J241: =SUM(D241:I241) -> 1
B242: サ高住 | D242: =1/6 -> 0.1666666667 | E242: 0.1666666667 | F242: 0.1666666667 | G242: 0.1666666667 | H242: 0.1666666667 | I242: 0.1666666667 | J242: 1
B243: 有料+サ高住 | D243: =1/6 -> 0.1666666667 | E243: 0.1666666667 | F243: 0.1666666667 | G243: 0.1666666667 | H243: 0.1666666667 | I243: 0.1666666667 | J243: 1
B246: 全体
B247: 要介護度別・世帯類型 | D247: 単身世帯 | E247: 同居(夫婦のみ) 世帯 | F247: 同居 (その他) 世帯 | G247: 合計
B248: 要支援1～2 | D248: =1/9 -> 0.1111111111 | E248: =1/9 -> 0.1111111111 | F248: 0.1111111111 | G248: =SUM(D248:F248) -> 0.3333333333
B249: 要介護1～2 | D249: =1/9 -> 0.1111111111 | E249: 0.1111111111 | F249: 0.1111111111 | G249: =SUM(D249:F249) -> 0.3333333333
B250: 要介護3～5 | D250: 0.1111111111 | E250: 0.1111111111 | F250: 0.1111111111 | G250: =SUM(D250:F250) -> 0.3333333333
B251: 合計 | D251: =SUM(D248:D250) -> 0.3333333333 | E251: =SUM(E248:E250) -> 0.3333333333 | F251: 0.3333333333 | G251: =SUM(D251:F251) -> 1
B254: 全体
... 44 more rows

Sheet 地域設定 (hidden)
A1: 読み込んだ要介護認定データには、 以下の郵便番号と町名が含まれています。 | C1: 町名を見て、地域番号を数字で割り振ってください（1から最大100まで）。集計対象としない町名は空欄のままで結構です（全体集計には含まれます）。 | E1: 地域番号に対応する地域名を入力してください。地域名が入力されていない地域については、集計結果に地域番号が表示されます。
G2: 地域番号 | H2: 1 | I2: 2 | J2: 3 | K2: 4 | L2: 5 | M2: 6 | N2: 7 | O2: 8 | P2: 9 | Q2: 10 | R2: 11 | S2: 12 | T2: 13 | U2: 14 | V2: 15 | W2: 16 | X2: 17 | Y2: 18 | Z2: 19 | AA2: 20 | AB2: 21 | AC2: 22 | AD2: 23 | AE2: 24 | AF2: 25 | AG2: 26 | AH2: 27 | AI2: 28 | AJ2: 29 | AK2: 30 | AL2: 31 | AM2: 32 | AN2: 33 | AO2: 34 | AP2: 35 | AQ2: 36 | AR2: 37 | AS2: 38 | AT2: 39 | AU2: 40 | AV2: 41 | AW2: 42 | AX2: 43 | AY2: 44 | AZ2: 45 | BA2: 46 | BB2: 47 | BC2: 48 | BD2: 49 | BE2: 50 | BF2: 51 | BG2: 52 | BH2: 53 | BI2: 54 | BJ2: 55 | BK2: 56 | BL2: 57 | BM2: 58 | BN2: 59 | BO2: 60 | BP2: 61 | BQ2: 62 | BR2: 63 | BS2: 64 | BT2: 65 | BU2: 66 | BV2: 67 | BW2: 68 | BX2: 69 | BY2: 70 | BZ2: 71 | CA2: 72 | CB2: 73 | CC2: 74 | CD2: 75 | CE2: 76 | CF2: 77 | CG2: 78 | CH2: 79 | CI2: 80 | CJ2: 81 | CK2: 82 | CL2: 83 | CM2: 84 | CN2: 85 | CO2: 86 | CP2: 87 | CQ2: 88 | CR2: 89 | CS2: 90 | CT2: 91 | CU2: 92 | CV2: 93 | CW2: 94 | CX2: 95 | CY2: 96 | CZ2: 97 | DA2: 98 | DB2: 99 | DC2: 100
G3: 地域名
G4: 要支援・要介護認定者数
G5: （対象データの直近時点）
A9: 郵便番号 | B9: 町名 | C9: 地域番号

Sheet 郵便番号 (hidden)
A1: 郵便番号 | B1: 町名
A2: 060-0000 | B2: 札幌市中央区（その他）
A3: 064-0941 | B3: 札幌市中央区旭ケ丘
A4: 060-0041 | B4: 札幌市中央区大通東
A5: 060-0042 | B5: 札幌市中央区大通西（１～１９丁目）
A6: 064-0820 | B6: 札幌市中央区大通西（２０～２８丁目）
A7: 060-0031 | B7: 札幌市中央区北一条東
A8: 060-0001 | B8: 札幌市中央区北一条西（１～１９丁目）
A9: 064-0821 | B9: 札幌市中央区北一条西（２０～２８丁目）
A10: 060-0032 | B10: 札幌市中央区北二条東
A11: 060-0002 | B11: 札幌市中央区北二条西（１～１９丁目）
A12: 064-0822 | B12: 札幌市中央区北二条西（２０～２８丁目）
A13: 060-0033 | B13: 札幌市中央区北三条東
A14: 060-0003 | B14: 札幌市中央区北三条西（１～１９丁目）
A15: 064-0823 | B15: 札幌市中央区北三条西（２０～３０丁目）
A16: 060-0034 | B16: 札幌市中央区北四条東（１～８丁目）
A17: 060-0004 | B17: 札幌市中央区北四条西（１～１９丁目）
A18: 064-0824 | B18: 札幌市中央区北四条西（２０～３０丁目）
A19: 060-0035 | B19: 札幌市中央区北五条東
A20: 060-0005 | B20: 札幌市中央区北五条西（１～２４丁目）
A21: 064-0825 | B21: 札幌市中央区北五条西（２５～２９丁目）
A22: 060-0006 | B22: 札幌市中央区北六条西（１０～２５丁目）
A23: 064-0826 | B23: 札幌市中央区北六条西（２６～２８丁目）
A24: 060-0007 | B24: 札幌市中央区北七条西
A25: 060-0008 | B25: 札幌市中央区北八条西
A26: 060-0009 | B26: 札幌市中央区北九条西
A27: 060-0010 | B27: 札幌市中央区北十条西
A28: 060-0011 | B28: 札幌市中央区北十一条西
A29: 060-0012 | B29: 札幌市中央区北十二条西
A30: 060-0013 | B30: 札幌市中央区北十三条西
A31: 060-0014 | B31: 札幌市中央区北十四条西
A32: 060-0015 | B32: 札幌市中央区北十五条西
A33: 060-0016 | B33: 札幌市中央区北十六条西
A34: 060-0017 | B34: 札幌市中央区北十七条西
A35: 060-0018 | B35: 札幌市中央区北十八条西
A36: 060-0020 | B36: 札幌市中央区北二十条西
A37: 060-0021 | B37: 札幌市中央区北二十一条西
A38: 060-0022 | B38: 札幌市中央区北二十二条西
A39: 064-0943 | B39: 札幌市中央区界川
A40: 064-0931 | B40: 札幌市中央区中島公園
A41: 064-0945 | B41: 札幌市中央区盤渓
A42: 064-0942 | B42: 札幌市中央区伏見
A43: 064-0946 | B43: 札幌市中央区双子山
A44: 064-0944 | B44: 札幌市中央区円山西町
A45: 060-0051 | B45: 札幌市中央区南一条東
A46: 060-0061 | B46: 札幌市中央区南一条西（１～１９丁目）
A47: 064-0801 | B47: 札幌市中央区南一条西（２０～２８丁目）
A48: 060-0052 | B48: 札幌市中央区南二条東
A49: 060-0062 | B49: 札幌市中央区南二条西（１～１９丁目）
A50: 064-0802 | B50: 札幌市中央区南二条西（２０～２８丁目）
A51: 060-0053 | B51: 札幌市中央区南三条東
A52: 060-0063 | B52: 札幌市中央区南三条西（１～１８丁目）
A53: 064-0803 | B53: 札幌市中央区南三条西（２０～２８丁目）
A54: 060-0054 | B54: 札幌市中央区南四条東
A55: 064-0804 | B55: 札幌市中央区南四条西
A56: 060-0055 | B56: 札幌市中央区南五条東
A57: 064-0805 | B57: 札幌市中央区南五条西
A58: 060-0056 | B58: 札幌市中央区南六条東
A59: 064-0806 | B59: 札幌市中央区南六条西
A60: 060-0057 | B60: 札幌市中央区南七条東
A61: 064-0807 | B61: 札幌市中央区南七条西
A62: 064-0808 | B62: 札幌市中央区南八条西
A63: 064-0809 | B63: 札幌市中央区南九条西
A64: 064-0810 | B64: 札幌市中央区南十条西
A65: 064-0811 | B65: 札幌市中央区南十一条西
A66: 064-0912 | B66: 札幌市中央区南十二条西
A67: 064-0913 | B67: 札幌市中央区南十三条西
A68: 064-0914 | B68: 札幌市中央区南十四条西
A69: 064-0915 | B69: 札幌市中央区南十五条西
A70: 064-0916 | B70: 札幌市中央区南十六条西
A71: 064-0917 | B71: 札幌市中央区南十七条西
A72: 064-0918 | B72: 札幌市中央区南十八条西
A73: 064-0919 | B73: 札幌市中央区南十九条西
A74: 064-0920 | B74: 札幌市中央区南二十条西
A75: 064-0921 | B75: 札幌市中央区南二十一条西
A76: 064-0922 | B76: 札幌市中央区南二十二条西
A77: 064-0923 | B77: 札幌市中央区南二十三条西
A78: 064-0924 | B78: 札幌市中央区南二十四条西
A79: 064-0925 | B79: 札幌市中央区南二十五条西
A80: 064-0926 | B80: 札幌市中央区南二十六条西
A81: 064-0927 | B81: 札幌市中央区南二十七条西
A82: 064-0928 | B82: 札幌市中央区南二十八条西
A83: 064-0929 | B83: 札幌市中央区南二十九条西
A84: 064-0930 | B84: 札幌市中央区南三十条西（９～１１丁目）
A85: 064-0959 | B85: 札幌市中央区宮ケ丘
A86: 064-0958 | B86: 札幌市中央区宮の森
A87: 064-0951 | B87: 札幌市中央区宮の森一条
A88: 064-0952 | B88: 札幌市中央区宮の森二条
A89: 064-0953 | B89: 札幌市中央区宮の森三条
A90: 064-0954 | B90: 札幌市中央区宮の森四条
A91: 001-0000 | B91: 札幌市北区（その他）
A92: 002-8071 | B92: 札幌市北区あいの里一条
A93: 002-8072 | B93: 札幌市北区あいの里二条
A94: 002-8073 | B94: 札幌市北区あいの里三条
A95: 002-8074 | B95: 札幌市北区あいの里四条
A96: 002-8075 | B96: 札幌市北区あいの里五条
A97: 001-0045 | B97: 札幌市北区麻生町
A98: 060-0806 | B98: 札幌市北区北六条西
A99: 060-0807 | B99: 札幌市北区北七条西
A100: 060-0808 | B100: 札幌市北区北八条西
A101: 060-0809 | B101: 札幌市北区北九条西
A102: 001-0010 | B102: 札幌市北区北十条西（１～４丁目）
A103: 060-0810 | B103: 札幌市北区北十条西（５～１１丁目）
A104: 001-0011 | B104: 札幌市北区北十一条西（１～４丁目）
A105: 060-0811 | B105: 札幌市北区北十一条西（５～１１丁目）
A106: 001-0012 | B106: 札幌市北区北十二条西（１～４丁目）
A107: 060-0812 | B107: 札幌市北区北十二条西（５～１２丁目）
A108: 001-0013 | B108: 札幌市北区北十三条西（１～４丁目）
A109: 060-0813 | B109: 札幌市北区北十三条西（５～１２丁目）
A110: 001-0014 | B110: 札幌市北区北十四条西（１～４丁目）
A111: 060-0814 | B111: 札幌市北区北十四条西（５～１３丁目）
A112: 001-0015 | B112: 札幌市北区北十五条西（１～５丁目）
A113: 060-0815 | B113: 札幌市北区北十五条西（６～１３丁目）
A114: 001-0016 | B114: 札幌市北区北十六条西（１～６丁目）
A115: 060-0816 | B115: 札幌市北区北十六条西（７～１３丁目）
A116: 001-0017 | B116: 札幌市北区北十七条西（１～６丁目）
A117: 060-0817 | B117: 札幌市北区北十七条西（７～１３丁目）
A118: 001-0018 | B118: 札幌市北区北十八条西（１～７丁目）
A119: 060-0818 | B119: 札幌市北区北十八条西（８～１３丁目）
A120: 001-0019 | B120: 札幌市北区北十九条西（２～７丁目）
A121: 060-0819 | B121: 札幌市北区北十九条西（８～１３丁目）
A122: 001-0020 | B122: 札幌市北区北二十条西（２～１０丁目）
A123: 060-0820 | B123: 札幌市北区北二十条西（１１～１３丁目）
A124: 001-0021 | B124: 札幌市北区北二十一条西
A125: 001-0022 | B125: 札幌市北区北二十二条西
A126: 001-0023 | B126: 札幌市北区北二十三条西
A127: 001-0024 | B127: 札幌市北区北二十四条西
A128: 001-0025 | B128: 札幌市北区北二十五条西
A129: 001-0026 | B129: 札幌市北区北二十六条西
A130: 001-0027 | B130: 札幌市北区北二十七条西
A131: 001-0028 | B131: 札幌市北区北二十八条西
A132: 001-0029 | B132: 札幌市北区北二十九条西
A133: 001-0030 | B133: 札幌市北区北三十条西
A134: 001-0031 | B134: 札幌市北区北三十一条西
A135: 001-0032 | B135: 札幌市北区北三十二条西
A136: 001-0033 | B136: 札幌市北区北三十三条西
A137: 001-0034 | B137: 札幌市北区北三十四条西
A138: 001-0035 | B138: 札幌市北区北三十五条西
A139: 001-0036 | B139: 札幌市北区北三十六条西
A140: 001-0037 | B140: 札幌市北区北三十七条西
A141: 001-0038 | B141: 札幌市北区北三十八条西
A142: 001-0039 | B142: 札幌市北区北三十九条西
A143: 001-0040 | B143: 札幌市北区北四十条西
A144: 002-8021 | B144: 札幌市北区篠路一条
A145: 002-8022 | B145: 札幌市北区篠路二条
A146: 002-8023 | B146: 札幌市北区篠路三条
A147: 002-8024 | B147: 札幌市北区篠路四条
A148: 002-8025 | B148: 札幌市北区篠路五条
A149: 002-8026 | B149: 札幌市北区篠路六条
A150: 002-8027 | B150: 札幌市北区篠路七条
A151: 002-8028 | B151: 札幌市北区篠路八条
A152: 002-8029 | B152: 札幌市北区篠路九条
A153: 002-8030 | B153: 札幌市北区篠路十条
A154: 002-8052 | B154: 札幌市北区篠路町上篠路
A155: 002-8053 | B155: 札幌市北区篠路町篠路
A156: 002-8051 | B156: 札幌市北区篠路町太平
A157: 002-8054 | B157: 札幌市北区篠路町拓北
A158: 002-8055 | B158: 札幌市北区篠路町福移
A159: 001-0930 | B159: 札幌市北区新川
A160: 001-0921 | B160: 札幌市北区新川一条
A161: 001-0922 | B161: 札幌市北区新川二条
A162: 001-0923 | B162: 札幌市北区新川三条
A163: 001-0924 | B163: 札幌市北区新川四条
A164: 001-0925 | B164: 札幌市北区新川五条
A165: 001-0926 | B165: 札幌市北区新川六条
A166: 001-0927 | B166: 札幌市北区新川七条
A167: 001-0928 | B167: 札幌市北区新川八条
A168: 001-0931 | B168: 札幌市北区新川西一条
A169: 001-0932 | B169: 札幌市北区新川西二条
A170: 001-0933 | B170: 札幌市北区新川西三条
A171: 001-0934 | B171: 札幌市北区新川西四条
A172: 001-0935 | B172: 札幌市北区新川西五条
A173: 001-0901 | B173: 札幌市北区新琴似一条
A174: 001-0902 | B174: 札幌市北区新琴似二条
A175: 001-0903 | B175: 札幌市北区新琴似三条
A176: 001-0904 | B176: 札幌市北区新琴似四条
A177: 001-0905 | B177: 札幌市北区新琴似五条
A178: 001-0906 | B178: 札幌市北区新琴似六条
A179: 001-0907 | B179: 札幌市北区新琴似七条
A180: 001-0908 | B180: 札幌市北区新琴似八条
A181: 001-0909 | B181: 札幌市北区新琴似九条
A182: 001-0910 | B182: 札幌市北区新琴似十条
A183: 001-0911 | B183: 札幌市北区新琴似十一条
A184: 001-0912 | B184: 札幌市北区新琴似十二条
A185: 001-0915 | B185: 札幌市北区新琴似町
A186: 002-8001 | B186: 札幌市北区太平一条
A187: 002-8002 | B187: 札幌市北区太平二条
A188: 002-8003 | B188: 札幌市北区太平三条
A189: 002-8004 | B189: 札幌市北区太平四条
A190: 002-8005 | B190: 札幌市北区太平五条
A191: 002-8006 | B191: 札幌市北区太平六条
A192: 002-8007 | B192: 札幌市北区太平七条
A193: 002-8008 | B193: 札幌市北区太平八条
A194: 002-8009 | B194: 札幌市北区太平九条
A195: 002-8010 | B195: 札幌市北区太平十条
A196: 002-8011 | B196: 札幌市北区太平十一条
A197: 002-8012 | B197: 札幌市北区太平十二条
A198: 002-8061 | B198: 札幌市北区拓北一条
A199: 002-8062 | B199: 札幌市北区拓北二条
A200: 002-8063 | B200: 札幌市北区拓北三条
... 4300 more rows
